bitfinex-derivatives/quotes_BNBF0:USTF0_20260110
["timestamp","ask_amount","ask_price","bid_price","bid_amount"]
[1768028184523,0.19177569,907.56,906.3,0.68474685]
[1768028184727,0.19177569,907.56,906.31,0.68474685]
[1768028185027,0.19177569,907.56,906.32,0.68474685]
[1768028185229,0.19177569,907.56,906.33,0.68474685]
[1768028185426,0.19177569,907.56,906.34,0.68474685]
[1768028185629,0.19177569,907.56,906.35,0.68474685]
[1768028185829,0.19177569,907.56,906.36,0.68474685]
[1768028186125,0.19177569,907.56,906.37,0.68474685]
[1768028186329,0.19177569,907.56,906.38,0.68474685]
[1768028186629,0.19177569,907.56,906.39,0.68474685]
[1768028186824,0.19177569,907.56,906.4,0.68474685]
[1768028187030,0.19177569,907.56,906.41,0.68474685]
[1768028187227,0.19177569,907.56,906.42,0.68587718]
[1768028187531,0.19177569,907.56,906.13,0.82655999]
[1768028187828,0.19177569,907.56,906.14,0.68587718]
[1768028188031,0.19177569,907.56,906.15,0.68587718]
[1768028188229,0.19177569,907.56,906.16,0.68587718]
[1768028188432,0.19177569,907.56,906.17,0.68587718]
[1768028188635,0.19177569,907.56,906.18,0.68587718]
[1768028188832,0.19177569,907.56,906.19,0.68587718]
[1768028189034,0.19177569,907.56,906.2,0.68587718]
[1768028189334,0.19177569,907.56,906.21,0.68587718]
[1768028189528,0.19177569,907.56,906.22,0.68587718]
[1768028189730,0.19177569,907.56,906.23,0.68587718]
[1768028189932,0.19177569,907.56,906.24,0.68587718]
[1768028190235,0.19177569,907.56,906.25,0.68587718]
[1768028190435,0.19177569,907.56,906.26,0.68587718]
[1768028190633,0.19177569,907.56,906.27,0.68587718]
[1768028190833,0.19177569,907.56,906.28,0.68587718]
[1768028191032,0.19177569,907.56,906.29,0.68587718]
[1768028191336,0.19177569,907.56,906.3,0.68587718]
[1768028191536,0.19177569,907.56,906.31,0.68587718]
[1768028191734,2.73720516,907.98,906.32,0.68587718]
[1768028191933,2.73720516,907.98,906.33,0.68587718]
[1768028192136,2.73720516,907.98,906.12,0.82655999]
[1768028192137,2.73720516,907.98,906.34,0.68587718]
[1768028192436,2.73720516,907.98,906.35,0.68587718]
[1768028192636,2.73720516,907.98,906.36,0.68587718]
[1768028192832,2.73720516,908.03,906.37,0.68587718]
[1768028193135,2.73720516,908.03,906.17,0.82655999]
[1768028193136,2.73720516,908.03,906.38,0.68587718]
[1768028193331,2.73720516,908.03,906.39,0.68587718]
[1768028193535,2.73720516,908.03,906.17,0.82655999]
[1768028193536,2.73720516,908.04,906.4,0.68587718]
[1768028193736,2.73720516,908.04,906.41,0.68587718]
[1768028194037,2.73720516,908.04,906.42,0.68587718]
[1768028194337,2.73720516,908.04,906.43,0.68587718]
[1768028194534,2.73720516,908.01,906.14,0.82655999]
[1768028194738,2.73720516,908.01,906.15,0.68553678]
[1768028195034,7.33635642,908.01,906.16,0.68553678]
[1768028195334,0.1918645,907.55,906.17,0.68553678]
[1768028195537,0.1918645,907.55,906.18,0.68553678]
[1768028195832,0.1918645,907.55,906.19,0.68553678]
[1768028196038,0.1918645,907.55,906.2,0.68553678]
[1768028196334,0.1918645,907.55,906.21,0.68553678]
[1768028196535,0.1918645,907.55,906.22,0.68553678]
[1768028196738,0.1918645,907.55,906.23,0.68553678]
[1768028196939,0.1918645,907.55,906.24,0.68553678]
[1768028197147,0.1918645,907.55,906.25,0.68553678]
[1768028197339,0.1918645,907.55,906.26,0.68553678]
[1768028197536,0.1918645,907.55,906.27,0.68553678]
[1768028197740,0.1918645,907.55,906.28,0.68553678]
[1768028197940,0.1918645,907.55,906.29,0.68553678]
[1768028198139,0.1918645,907.55,906.3,0.68553678]
[1768028198342,0.1918645,907.55,906.31,0.68553678]
[1768028198637,0.1918645,907.55,906.32,0.68553678]
[1768028198841,0.1918645,907.55,906.33,0.68553678]
[1768028199039,0.1918645,907.55,906.34,0.68553678]
[1768028199338,0.1918645,907.55,906.35,0.68553678]
[1768028199642,0.1918645,907.55,906.36,0.68553678]
[1768028199838,0.1918645,907.55,906.37,0.68553678]
[1768028200037,0.1918645,907.55,906.38,0.68553678]
[1768028200236,0.1918645,907.55,906.39,0.68553678]
[1768028200537,0.1918645,907.55,906.4,0.68553678]
[1768028200736,0.1918645,907.55,906.41,0.68553678]
[1768028201041,0.1918645,907.55,906.12,0.82655999]
[1768028201241,0.1918645,907.55,906.13,0.68530624]
[1768028201436,0.1918645,907.55,906.14,0.68530624]
[1768028201638,0.1918645,907.55,906.15,0.68530624]
[1768028201838,0.1918645,907.55,906.16,0.68530624]
[1768028202140,0.1918645,907.55,906.17,0.68530624]
[1768028202337,0.1918645,907.55,906.18,0.68530624]
[1768028202539,0.1918645,907.55,906.19,0.68530624]
[1768028202840,0.1918645,907.55,906.2,0.68530624]
[1768028203039,0.1918645,907.55,906.21,0.68530624]
[1768028203237,0.1918645,907.55,906.22,0.68530624]
[1768028203435,0.1918645,907.55,906.23,0.68530624]
[1768028203637,0.1918645,907.55,906.24,0.68530624]
[1768028203840,0.1918645,907.55,906.25,0.68530624]
[1768028204037,0.1918645,907.55,906.26,0.68530624]
[1768028204339,0.1918645,907.55,906.27,0.68530624]
[1768028204544,0.1918645,907.55,906.28,0.68530624]
[1768028204741,0.1918645,907.55,906.29,0.68530624]
[1768028204936,0.1918645,907.55,906.3,0.68530624]
[1768028205141,0.1918645,907.55,906.14,0.82655999]
[1768028205142,0.1918645,907.55,906.31,0.68530624]
[1768028205439,0.1918645,907.55,906.32,0.68530624]
[1768028205637,0.1918645,907.55,906.33,0.68530624]
[1768028205940,0.1918645,907.55,906.34,0.68530624]
[1768028206141,0.1918645,907.55,906.35,0.68530624]
[1768028206441,0.1918645,907.55,906.36,0.68530624]
[1768028206638,0.1918645,907.55,906.37,0.68530624]
[1768028206841,0.1918645,907.55,906.38,0.68530624]
[1768028207040,0.1918645,907.55,906.39,0.68530624]
[1768028207245,0.1918645,907.55,906.4,0.68530624]
[1768028207437,0.1918645,907.55,906.41,0.68530624]
[1768028207737,0.1918645,907.55,906.42,0.68530624]
[1768028207938,0.1918645,907.55,906.43,0.68530624]
[1768028208141,0.1918645,907.55,906.44,0.68530624]
[1768028208338,0.1918645,907.55,906.31,1.595]
[1768028208641,0.1918645,907.55,906.32,0.68509836]
[1768028208838,0.1918645,907.55,906.33,0.68509836]
[1768028209041,0.1918645,907.55,906.34,0.68509836]
[1768028209341,0.1918645,907.55,906.35,0.68509836]
[1768028209642,0.1918645,907.55,906.36,0.68509836]
[1768028209836,0.1918645,907.55,906.37,0.68509836]
[1768028210037,0.1918645,907.55,906.38,0.68509836]
[1768028210338,0.1918645,907.55,906.39,0.68509836]
[1768028210538,0.1918645,907.55,906.4,0.68509836]
[1768028210736,0.1918645,907.55,906.41,0.68509836]
[1768028211037,0.1918645,907.55,906.42,0.68509836]
[1768028211236,0.1918645,907.55,906.43,0.68509836]
[1768028211436,0.1918645,907.55,906.44,0.68509836]
[1768028211641,0.1918645,907.55,906.31,1.595]
[1768028211841,0.1918645,907.55,906.32,0.68517193]
[1768028212041,0.1918645,907.55,906.33,0.68517193]
[1768028212240,0.1918645,907.55,906.34,0.68517193]
[1768028212536,0.1918645,907.55,906.35,0.68517193]
[1768028212736,0.1918645,907.55,906.36,0.68517193]
[1768028212940,0.1918645,907.55,906.37,0.68517193]
[1768028213140,0.1918645,907.55,906.38,0.68517193]
[1768028213342,0.1918645,907.55,906.39,0.68517193]
[1768028213643,0.1918645,907.55,906.4,0.68517193]
[1768028213938,0.1918645,907.55,906.41,0.68517193]
[1768028214238,0.1918645,907.55,906.42,0.68517193]
[1768028214438,0.1918645,907.55,906.43,0.68517193]
[1768028214640,0.1918645,907.55,906.44,0.68517193]
[1768028214937,0.1918645,907.55,906.31,1.595]
[1768028215138,0.1918645,907.55,906.32,0.68524288]
[1768028215337,0.1918645,907.55,906.33,0.68524288]
[1768028215536,0.1918645,907.55,906.34,0.68524288]
[1768028215736,0.1918645,907.55,906.35,0.68524288]
[1768028216037,0.1918645,907.55,906.36,0.68524288]
[1768028216240,0.1918645,907.55,906.37,0.68524288]
[1768028216441,0.1918645,907.55,906.38,0.68524288]
[1768028216640,0.1918645,907.55,906.39,0.68524288]
[1768028216841,0.1918645,907.55,906.4,0.68524288]
[1768028217045,0.1918645,907.55,906.41,0.68524288]
[1768028217238,0.1918645,907.55,906.42,0.68524288]
[1768028217542,0.1918645,907.55,906.43,0.68524288]
[1768028217741,0.1918645,907.55,906.44,0.68524288]
[1768028218041,0.1918645,907.55,906.45,0.68524288]
[1768028218242,0.1918645,907.55,906.16,0.82655999]
[1768028218540,0.1918645,907.55,906.17,0.68540407]
[1768028218741,0.1918645,907.55,906.18,0.68540407]
[1768028219037,0.1918645,907.55,906.19,0.68540407]
[1768028219242,0.1918645,907.55,906.2,0.68540407]
[1768028219439,0.1918645,907.55,906.21,0.68540407]
[1768028219642,0.1918645,907.55,906.22,0.68540407]
[1768028219842,0.1918645,907.55,906.23,0.68540407]
[1768028220038,0.1918645,907.55,906.24,0.68540407]
[1768028220244,0.1918645,907.55,906.25,0.68540407]
[1768028220445,0.1918645,907.55,906.26,0.68540407]
[1768028220645,0.1918645,907.55,906.27,0.68540407]
[1768028220845,0.1918645,907.55,906.28,0.68540407]
[1768028221045,0.1918645,907.55,906.29,0.68540407]
[1768028221345,0.1918645,907.55,906.19,1.331]
[1768028221346,0.1918645,907.55,906.3,0.68540407]
[1768028221543,0.1918645,907.55,906.31,0.68540407]
[1768028221741,0.1918645,907.55,906.32,0.68540407]
[1768028221942,0.1918645,907.55,906.33,0.68540407]
[1768028222245,0.1918645,907.55,906.34,0.68540407]
[1768028222446,0.1918645,907.55,906.35,0.68540407]
[1768028222647,0.1918645,907.55,906.19,1.331]
[1768028222846,0.1918645,907.55,906.2,0.68565959]
[1768028223041,0.1918645,907.55,906.21,0.68565959]
[1768028223243,0.1918645,907.55,906.22,0.68565959]
[1768028223443,0.1918645,907.55,906.23,0.68565959]
[1768028223643,0.1918645,907.55,906.24,0.68565959]
[1768028223846,0.1918645,907.55,906.25,0.68565959]
[1768028224142,0.1918645,907.55,906.26,0.68565959]
[1768028224448,0.1918645,907.55,906.27,0.68565959]
[1768028224651,0.1918645,907.55,906.28,0.68565959]
[1768028224852,0.1918645,907.55,906.29,0.68565959]
[1768028225049,0.1918645,907.55,906.3,0.68565959]
[1768028225351,0.1918645,907.55,906.31,0.68565959]
[1768028225552,0.1918645,907.55,906.32,0.68565959]
[1768028225848,0.1918645,907.55,906.33,0.68565959]
[1768028226053,0.1918645,907.55,906.34,0.68565959]
[1768028226253,0.1918645,907.55,906.35,0.68565959]
[1768028226451,0.1918645,907.55,906.36,0.68565959]
[1768028226752,0.1918645,907.55,906.19,1.331]
[1768028226954,0.1918645,907.55,906.2,0.68572388]
[1768028227152,0.1918645,907.55,906.21,0.68572388]
[1768028227453,0.1918645,907.55,906.22,0.68572388]
[1768028227753,0.1918645,907.55,906.23,0.68572388]
[1768028228053,0.1918645,907.55,906.24,0.68572388]
[1768028228250,0.1918645,907.55,906.25,0.68572388]
[1768028228449,0.1918645,907.55,906.26,0.68572388]
[1768028228653,0.1918645,907.55,906.27,0.68572388]
[1768028228951,0.1918645,907.55,906.28,0.68572388]
[1768028229153,0.1918645,907.55,906.29,0.68572388]
[1768028229354,0.1918645,907.55,906.3,0.68572388]
[1768028229655,0.1918645,907.55,906.31,0.68572388]
[1768028229850,0.1918645,907.55,906.32,0.68572388]
[1768028230056,0.1918645,907.55,906.33,0.68572388]
[1768028230355,0.1918645,907.55,906.34,0.68572388]
[1768028230555,0.1918645,907.55,906.19,1.331]
[1768028230752,0.1918645,907.55,906.2,0.68555751]
[1768028230956,0.1918645,907.55,906.21,0.68555751]
[1768028231155,0.1918645,907.55,906.22,0.68555751]
[1768028231352,0.1918645,907.55,906.23,0.68555751]
[1768028231553,0.1918645,907.55,906.24,0.68555751]
[1768028231752,0.1918645,907.55,906.25,0.68555751]
[1768028231955,0.1918645,907.55,906.26,0.68555751]
[1768028232154,0.1918645,907.55,906.27,0.68555751]
[1768028232353,0.1918645,907.55,906.28,0.68555751]
[1768028232553,0.1918645,907.55,906.29,0.68555751]
[1768028232856,0.1918645,907.55,906.3,0.68555751]
[1768028233158,0.1918645,907.55,906.31,0.68555751]
[1768028233458,0.1918645,907.55,906.32,0.68555751]
[1768028233754,0.1918645,907.55,906.33,0.68555751]
[1768028233958,0.1918645,907.55,906.19,1.331]
[1768028234159,0.1918645,907.55,906.2,0.68542981]
[1768028234360,0.1918645,907.55,906.21,0.68542981]
[1768028234559,0.1918645,907.55,906.22,0.68542981]
[1768028234856,0.1918645,907.55,906.23,0.68542981]
[1768028235059,0.1918645,907.55,906.24,0.68542981]
[1768028235256,0.1918645,907.55,906.25,0.68542981]
[1768028235457,0.1918645,907.55,906.26,0.68542981]
[1768028235761,0.1918645,907.55,906.27,0.68542981]
[1768028235959,0.1918645,907.55,906.28,0.68542981]
[1768028236157,0.1918645,907.55,906.29,0.68542981]
[1768028236359,0.1918645,907.55,906.3,0.68542981]
[1768028236557,0.1918645,907.55,906.31,0.68542981]
[1768028236763,0.1918645,907.55,906.19,1.331]
[1768028236958,0.1918645,907.55,906.2,0.68532683]
[1768028237261,0.1918645,907.55,906.21,0.68532683]
[1768028237557,0.1918645,907.55,906.22,0.68532683]
[1768028237757,0.1918645,907.55,906.23,0.68532683]
[1768028237956,0.1918645,907.55,906.24,0.68532683]
[1768028238161,0.1918645,907.55,906.25,0.68532683]
[1768028238457,0.1918645,907.55,906.26,0.68532683]
[1768028238657,0.1918645,907.55,906.27,0.68532683]
[1768028238862,0.1918645,907.55,906.28,0.68532683]
[1768028239057,0.1918645,907.55,906.29,0.68532683]
[1768028239261,0.1918645,907.55,906.3,0.68532683]
[1768028239461,0.1918645,907.55,906.19,1.331]
[1768028239660,0.1918645,907.55,906.2,0.68538825]
[1768028239860,0.1918645,907.55,906.21,0.68538825]
[1768028240063,0.1918645,907.55,906.22,0.68538825]
[1768028240263,0.1918645,907.55,906.23,0.68538825]
[1768028240559,0.1918645,907.55,906.24,0.68538825]
[1768028240760,0.1918645,907.55,906.25,0.68538825]
[1768028241063,0.1918645,907.55,906.26,0.68538825]
[1768028241262,0.1918645,907.55,906.27,0.68538825]
[1768028241561,0.1918645,907.55,906.28,0.68538825]
[1768028241759,0.1918645,907.55,906.19,1.331]
[1768028241760,0.1918645,907.55,906.29,0.68538825]
[1768028241961,0.1918645,907.55,906.3,0.68538825]
[1768028242161,0.1918645,907.55,906.19,1.331]
[1768028242360,0.1918645,907.55,906.2,0.68537296]
[1768028242660,0.1918645,907.55,906.21,0.68537296]
[1768028242857,0.1918645,907.55,906.22,0.68537296]
[1768028243059,0.1918645,907.55,906.23,0.68537296]
[1768028243265,0.1918645,907.55,906.24,0.68537296]
[1768028243460,0.1918645,907.55,906.25,0.68537296]
[1768028243760,0.1918645,907.55,906.26,0.68537296]
[1768028243963,0.1918645,907.55,906.27,0.68537296]
[1768028244163,0.1918645,907.55,906.28,0.68537296]
[1768028244361,0.1918645,907.55,906.29,0.68537296]
[1768028244560,0.1918645,907.55,906.3,0.68537296]
[1768028244760,0.1918645,907.55,906.31,0.68537296]
[1768028244964,0.1918645,907.55,906.32,0.68537296]
[1768028245164,0.1918645,907.55,906.19,1.331]
[1768028245362,0.1918645,907.55,906.2,0.68538347]
[1768028245565,0.1918645,907.55,906.21,0.68538347]
[1768028245762,0.1918645,907.55,906.22,0.68538347]
[1768028246066,0.1918645,907.55,906.23,0.68538347]
[1768028246361,0.1918645,907.55,906.24,0.68538347]
[1768028246566,0.1918645,907.55,906.25,0.68538347]
[1768028246766,0.1918645,907.55,906.26,0.68538347]
[1768028246968,0.1918645,907.55,906.27,0.68538347]
[1768028247267,0.1918645,907.55,906.28,0.68538347]
[1768028247464,0.1918645,907.55,906.29,0.68538347]
[1768028247664,0.1918645,907.55,906.3,0.68538347]
[1768028247963,0.1918645,907.55,906.31,0.68538347]
[1768028248163,0.1918645,907.55,906.32,0.68538347]
[1768028248368,0.1918645,907.55,906.32,1.223]
[1768028251068,0.1918645,907.55,906.33,0.68546709]
[1768028251270,0.1918645,907.55,906.32,1.223]
[1768028251464,0.1918645,907.55,906.33,0.68547396]
[1768028251668,0.1918645,907.55,906.32,1.223]
[1768028251866,0.1918645,907.55,906.33,0.68547396]
[1768028252070,0.1918645,907.55,906.32,1.223]
[1768028252272,0.1918645,907.55,906.33,0.68549389]
[1768028252565,0.1918645,907.55,906.32,1.223]
[1768028252769,0.1918645,907.55,906.33,0.68550134]
[1768028252974,0.1918645,907.55,906.32,1.223]
[1768028253171,0.1918645,907.55,906.33,0.68550141]
[1768028253365,0.1918645,907.55,906.32,1.223]
[1768028253566,0.1918645,907.55,906.33,0.685533]
[1768028253766,0.1918645,907.55,906.32,1.223]
[1768028253965,0.1918645,907.55,906.33,0.68553254]
[1768028254171,0.1918645,907.55,906.32,1.223]
[1768028254369,0.1918645,907.55,906.33,0.68556892]
[1768028254568,0.1918645,907.55,906.32,1.223]
[1768028254766,0.1918645,907.55,906.33,0.68556892]
[1768028255067,0.1918645,907.55,906.32,1.223]
[1768028255272,0.1918645,907.55,906.33,0.68560121]
[1768028255470,0.1918645,907.55,906.34,0.68559952]
[1768028255670,0.1918645,907.55,906.35,0.68559952]
[1768028255868,0.1918645,907.55,906.36,0.68559952]
[1768028256069,0.1918645,907.55,906.32,1.223]
[1768028256269,0.1918645,907.55,906.33,0.68562885]
[1768028256469,0.1918645,907.55,906.34,0.68562885]
[1768028256669,0.1918645,907.55,906.35,0.68562885]
[1768028256874,0.1918645,907.55,906.36,0.68562885]
[1768028257070,0.1918645,907.55,906.37,0.68568359]
[1768028257374,0.1918645,907.55,906.32,1.223]
[1768028257574,0.1918645,907.55,906.33,0.68569496]
[1768028257871,0.1918645,907.55,906.34,0.68569496]
[1768028258073,0.1918645,907.55,906.35,0.68569496]
[1768028258270,0.1918645,907.55,906.36,0.68569496]
[1768028258473,0.1918645,907.55,906.37,0.68569496]
[1768028258674,0.1918645,907.55,906.32,1.223]
[1768028258874,0.1918645,907.55,906.33,0.68575422]
[1768028259071,0.1918645,907.55,906.34,0.68575422]
[1768028259376,0.1918645,907.55,906.35,0.68575422]
[1768028259571,0.1918645,907.55,906.36,0.68575422]
[1768028259770,0.1918645,907.55,906.37,0.68575422]
[1768028259976,0.1918645,907.55,906.32,1.223]
[1768028260175,0.1918645,907.55,906.33,0.68582055]
[1768028260476,0.1918645,907.55,906.34,0.68582055]
[1768028260775,0.1918645,907.55,906.35,0.68582055]
[1768028260976,0.1918645,907.55,906.36,0.68582055]
[1768028261173,0.1918645,907.55,906.37,0.68582055]
[1768028261372,0.1918645,907.55,906.38,0.68582055]
[1768028261577,0.1918645,907.55,906.32,1.223]
[1768028261878,0.1918645,907.55,906.33,0.68598041]
[1768028262177,0.1918645,907.55,906.34,0.68598041]
[1768028262479,0.1918645,907.55,906.35,0.68598041]
[1768028262679,0.1918645,907.55,906.36,0.68598041]
[1768028262877,0.1918645,907.55,906.37,0.68598041]
[1768028263074,0.1918645,907.55,906.38,0.68598041]
[1768028263279,0.1918645,907.55,906.39,0.68598041]
[1768028263579,0.1918645,907.55,906.32,1.223]
[1768028263780,0.1918645,907.55,906.33,0.68620707]
[1768028263979,0.1918645,907.55,906.34,0.68620707]
[1768028264180,0.1918645,907.55,906.35,0.68620707]
[1768028264377,0.1918645,907.55,906.36,0.68620707]
[1768028264580,0.1918645,907.55,906.37,0.68620707]
[1768028264779,0.1918645,907.55,906.38,0.68620707]
[1768028265076,0.1918645,907.55,906.39,0.68620707]
[1768028265281,0.1918645,907.55,906.4,0.68620707]
[1768028265479,0.1918645,907.55,906.32,1.223]
[1768028265480,0.1918645,907.55,906.41,0.68620707]
[1768028265680,0.1918645,907.55,906.42,0.68620707]
[1768028265881,0.1918645,907.55,906.43,0.68620707]
[1768028266081,0.1918645,907.55,906.44,0.68620707]
[1768028266282,0.1918645,907.55,906.32,1.223]
[1768028266584,0.1918645,907.55,906.33,0.68620028]
[1768028266882,0.1918645,907.55,906.34,0.68620028]
[1768028267082,0.1918645,907.55,906.35,0.68620028]
[1768028267284,0.1918645,907.55,906.36,0.68620028]
[1768028267480,0.1918645,907.55,906.37,0.68620028]
[1768028267680,0.1918645,907.55,906.38,0.68620028]
[1768028267883,0.1918645,907.55,906.39,0.68620028]
[1768028268180,0.1918645,907.55,906.4,0.68620028]
[1768028268384,0.1918645,907.55,906.41,0.68620028]
[1768028268584,0.1918645,907.55,906.42,0.68620028]
[1768028268884,0.1918645,907.55,906.43,0.68620028]
[1768028269183,0.1918645,907.55,906.44,0.68625445]
[1768028269377,0.1918645,907.55,906.32,1.223]
[1768028269579,0.1918645,907.55,906.33,0.68625399]
[1768028269784,0.1918645,907.55,906.34,0.68625399]
[1768028270083,0.1918645,907.55,906.35,0.68625399]
[1768028270281,0.1918645,907.55,906.36,0.68625399]
[1768028270484,0.1918645,907.55,906.37,0.68625399]
[1768028270684,0.1918645,907.55,906.38,0.68625399]
[1768028270983,0.1918645,907.55,906.39,0.68625399]
[1768028271184,0.1918645,907.55,906.4,0.68625399]
[1768028271483,0.1918645,907.55,906.41,0.68625399]
[1768028271681,0.1918645,907.55,906.42,0.68625399]
[1768028271879,0.1918645,907.55,906.43,0.68625399]
[1768028272180,0.1918645,907.55,906.44,0.68625399]
[1768028272380,0.1918645,907.55,906.32,1.223]
[1768028272581,0.1918645,907.55,906.33,0.68613077]
[1768028272785,0.1918645,907.55,906.34,0.68613077]
[1768028272985,0.1918645,907.55,906.35,0.68613077]
[1768028273183,0.1918645,907.55,906.36,0.68613077]
[1768028273385,0.1918645,907.55,906.37,0.68613077]
[1768028273682,0.1918645,907.55,906.38,0.68613077]
[1768028273885,0.1918645,907.55,906.39,0.68613077]
[1768028274082,0.1918645,907.55,906.4,0.68613077]
[1768028274287,0.1918645,907.55,906.41,0.68613077]
[1768028274484,0.1918645,907.55,906.42,0.68613077]
[1768028274682,0.1918645,907.55,906.43,0.68613077]
[1768028274886,0.1918645,907.55,906.32,1.223]
[1768028275186,0.1918645,907.55,906.33,0.68606819]
[1768028275383,0.1918645,907.55,906.34,0.68606819]
[1768028275588,0.1918645,907.55,906.35,0.68606819]
[1768028275788,0.1918645,907.55,906.36,0.68606819]
[1768028275991,0.1918645,907.55,906.37,0.68606819]
[1768028276191,0.1918645,907.55,906.38,0.68606819]
[1768028276490,0.1918645,907.55,906.39,0.68606819]
[1768028276687,0.1918645,907.55,906.4,0.68606819]
[1768028276985,0.1918645,907.55,906.41,0.68606819]
[1768028277286,0.1918645,907.55,906.42,0.68606819]
[1768028277586,0.1918645,907.55,906.43,0.68606819]
[1768028277785,0.1918645,907.55,906.44,0.68606819]
[1768028277991,0.1918645,907.55,906.45,0.68606819]
[1768028278190,0.1918645,907.55,906.46,0.68606819]
[1768028278391,0.1918645,907.55,906.47,0.68606819]
[1768028278687,0.1918645,907.55,906.48,0.68606819]
[1768028278890,0.1918645,907.55,906.49,0.68606819]
[1768028279090,0.1918645,907.55,906.5,0.68606819]
[1768028279392,0.1918645,907.55,906.32,1.223]
[1768028279393,0.1918645,907.55,906.51,0.68606819]
[1768028279587,0.1918645,907.55,906.52,0.68606819]
[1768028279791,0.1918645,907.55,906.53,0.68606819]
[1768028279991,0.1918645,907.55,906.54,0.68606819]
[1768028280291,0.1918645,907.55,906.55,0.68606819]
[1768028280487,0.1918645,907.55,906.56,0.68606819]
[1768028280691,0.1918645,907.55,906.57,0.68606819]
[1768028280892,0.1918645,907.55,906.58,0.68606819]
[1768028281188,0.1918645,907.55,906.59,0.68606819]
[1768028281389,0.1918645,907.55,906.32,1.223]
[1768028281590,0.1918645,907.55,906.33,0.68470217]
[1768028281788,0.1918645,907.55,906.34,0.68470217]
[1768028281987,0.1918645,907.55,906.35,0.68470217]
[1768028282192,0.1918645,907.55,906.36,0.68470217]
[1768028282392,0.1918645,907.55,906.37,0.68470217]
[1768028282592,0.1918645,907.55,906.38,0.68470217]
[1768028282792,0.1918645,907.55,906.39,0.68470217]
[1768028282990,0.1918645,907.55,906.4,0.68470217]
[1768028283292,0.1918645,907.55,906.41,0.68470217]
[1768028283492,0.1918645,907.55,906.42,0.68470217]
[1768028283692,0.1918645,907.55,906.43,0.68470217]
[1768028283892,0.1918645,907.55,906.44,0.68470217]
[1768028284192,0.1918645,907.55,906.45,0.68470217]
[1768028284391,0.1918645,907.55,906.46,0.68470217]
[1768028284592,0.1918645,907.55,906.47,0.68470217]
[1768028284794,0.1918645,907.55,906.48,0.68470217]
[1768028284995,0.1918645,907.55,906.49,0.68470217]
[1768028285191,0.1918645,907.55,906.5,0.68470217]
[1768028285394,0.1918645,907.55,906.51,0.68470217]
[1768028285692,0.1918645,907.55,906.52,0.68470217]
[1768028285890,0.1918645,907.55,906.53,0.68470217]
[1768028286093,0.1918645,907.55,906.54,0.68470217]
[1768028286290,0.1918645,907.55,906.55,0.68470217]
[1768028286595,0.1918645,907.55,906.56,0.68470217]
[1768028286895,0.1918645,907.55,906.57,0.68470217]
[1768028287194,0.1918645,907.55,906.58,0.68470217]
[1768028287394,0.1918645,907.55,906.59,0.68470217]
[1768028287595,0.1918645,907.55,906.6,0.68470217]
[1768028287792,0.1918645,907.55,906.32,1.223]
[1768028287996,0.1918645,907.55,906.33,0.68344781]
[1768028288298,0.1918645,907.55,906.34,0.68344781]
[1768028288500,0.1918645,907.55,906.35,0.68344781]
[1768028288691,0.1918645,907.55,906.36,0.68344781]
[1768028288995,0.1918645,907.55,906.37,0.68344781]
[1768028289192,0.1918645,907.55,906.38,0.68344781]
[1768028289393,0.1918645,907.55,906.39,0.68344781]
[1768028289591,0.1918645,907.55,906.4,0.68344781]
[1768028289791,0.1918645,907.55,906.41,0.68344781]
[1768028289993,0.1918645,907.55,906.42,0.68344781]
[1768028290192,0.1918645,907.55,906.43,0.68344781]
[1768028290393,0.1918645,907.55,906.44,0.68344781]
[1768028290592,0.1918645,907.55,906.45,0.68344781]
[1768028290798,0.1918645,907.55,906.46,0.68344781]
[1768028290997,0.1918645,907.55,906.47,0.68344781]
[1768028291293,0.1918645,907.55,906.48,0.68344781]
[1768028291493,0.1918645,907.55,906.49,0.68344781]
[1768028291698,0.1918645,907.55,906.5,0.68344781]
[1768028291894,0.1918645,907.55,906.51,0.68344781]
[1768028292199,0.1918645,907.55,906.52,0.68302871]
[1768028292400,0.1918645,907.55,906.53,0.68302871]
[1768028292700,0.1918645,907.55,906.54,0.68302871]
[1768028292899,0.1918645,907.55,906.55,0.68302871]
[1768028293100,0.1918645,907.55,906.56,0.68302871]
[1768028293395,0.1918645,907.55,906.57,0.68302871]
[1768028293600,0.1918645,907.55,906.32,1.223]
[1768028293800,0.1918645,907.55,906.33,0.6829153]
[1768028294000,0.1918645,907.55,906.34,0.6829153]
[1768028294199,0.1918645,907.55,906.35,0.6829153]
[1768028294497,0.1918645,907.55,906.36,0.6829153]
[1768028294801,0.1918645,907.55,906.37,0.6829153]
[1768028295001,0.1918645,907.55,906.38,0.6829153]
[1768028295302,0.1918645,907.55,906.39,0.6829153]
[1768028295500,0.1918645,907.55,906.4,0.6829153]
[1768028295704,0.1918645,907.55,906.41,0.6829153]
[1768028295901,0.1918645,907.55,906.42,0.6829153]
[1768028296099,0.1918645,907.55,906.43,0.6829153]
[1768028296398,0.1918645,907.55,906.44,0.6829153]
[1768028296699,0.1918645,907.55,906.45,0.6829153]
[1768028296900,0.1918645,907.55,906.46,0.6829153]
[1768028297105,0.1918645,907.55,906.47,0.6829153]
[1768028297298,0.1918645,907.55,906.48,0.6829153]
[1768028297602,0.1918645,907.55,906.49,0.6829153]